bitfinex-derivatives/quotes_BTCF0:USTF0_20250809
["timestamp","ask_amount","ask_price","bid_price","bid_amount"]
[1754725927765,0.48323471,116850.0,116840.0,1.78228486]
[1754725930070,0.222398,116850.0,116840.0,1.78228486]
[1754725930268,0.48323471,116850.0,116840.0,1.78228486]
[1754725931071,0.44987471,116850.0,116840.0,1.78228486]
[1754725931467,0.44987471,116850.0,116840.0,1.67462411]
[1754725931664,0.48282471,116850.0,116840.0,1.67462411]
[1754725932165,0.50062471,116850.0,116840.0,1.67462411]
[1754725933471,0.58618911,116850.0,116840.0,1.67462411]
[1754725934772,0.3253524,116850.0,116840.0,1.67462411]
[1754725934972,0.58618911,116850.0,116840.0,1.67462411]
[1754725936767,0.58618911,116850.0,116840.0,1.31382411]
[1754725936973,0.58618911,116850.0,116840.0,1.67462411]
[1754725938175,0.3253524,116850.0,116840.0,1.67462411]
[1754725938477,0.50062471,116850.0,116840.0,1.67462411]
[1754725938978,0.58618901,116850.0,116840.0,1.67462411]
[1754725939374,0.50062471,116850.0,116840.0,1.67462411]
[1754725939574,0.50062471,116850.0,116840.0,1.4137874]
[1754725939776,0.50062471,116850.0,116840.0,1.67462411]
[1754725940170,0.50062471,116850.0,116840.0,1.78228486]
[1754725944682,0.50062471,116850.0,116840.0,1.52144815]
[1754725944881,0.50062471,116850.0,116840.0,1.78228486]
[1754725947077,0.239788,116850.0,116840.0,1.42148486]
[1754725947283,0.50062471,116850.0,116840.0,1.78228486]
[1754725948580,0.239788,116850.0,116840.0,1.78228486]
[1754725948788,0.50062471,116850.0,116840.0,1.78228486]
[1754725951081,0.50062471,116850.0,116840.0,1.67462411]
[1754725956692,0.239788,116850.0,116840.0,1.67462411]
[1754725956891,0.50062471,116850.0,116840.0,1.67462411]
[1754725957088,0.50062471,116850.0,116840.0,1.78228486]
[1754725958081,0.239788,116850.0,116840.0,1.78228486]
[1754725958286,0.50062471,116850.0,116840.0,1.78228486]
[1754725960398,0.114918,116850.0,116840.0,1.52144815]
[1754725960698,0.39840471,116850.0,116840.0,1.93546082]
[1754725960899,0.137568,116850.0,116840.0,1.93546082]
[1754725961098,0.39840471,116850.0,116840.0,1.93546082]
[1754725962594,0.137568,116850.0,116840.0,1.93546082]
[1754725962798,0.39840471,116850.0,116840.0,1.93546082]
[1754725963100,0.39840471,116850.0,116840.0,1.67462411]
[1754725964495,0.137568,116850.0,116840.0,1.67462411]
[1754725964697,0.39840471,116850.0,116840.0,1.67462411]
[1754725965199,0.114918,116850.0,116840.0,1.93546082]
[1754725965498,0.137568,116850.0,116840.0,2.04311601]
[1754725965688,0.39840471,116850.0,116840.0,2.40391601]
[1754725966087,0.39840471,116850.0,116840.0,2.29626082]
[1754725967100,0.137568,116850.0,116840.0,1.7745874]
[1754725967300,0.39840471,116850.0,116840.0,2.29626082]
[1754725968302,0.39840471,116850.0,116840.0,1.7745874]
[1754725968500,0.39840471,116850.0,116840.0,2.29626082]
[1754725970202,0.137568,116850.0,116840.0,2.29626082]
[1754725970404,0.39840471,116850.0,116840.0,1.7745874]
[1754725970604,0.39840471,116850.0,116840.0,2.29626082]
[1754725970993,0.39840471,116850.0,116840.0,2.40388214]
[1754725972604,0.39840471,116850.0,116840.0,2.29626082]
[1754725972798,0.42613471,116850.0,116840.0,2.29626082]
[1754725973006,0.215528,116850.0,116840.0,2.29626082]
[1754725973200,0.47636471,116850.0,116840.0,2.29626082]
[1754725975405,0.215528,116850.0,116840.0,2.29626082]
[1754725975603,0.45789471,116850.0,116840.0,2.29626082]
[1754725978203,0.197058,116850.0,116840.0,2.29626082]
[1754725978508,0.42613471,116850.0,116840.0,2.29626082]
[1754725980007,0.197058,116850.0,116840.0,2.29626082]
[1754725980204,0.45789471,116850.0,116840.0,1.7745874]
[1754725980508,0.45789471,116850.0,116840.0,2.29626082]
[1754725982007,0.45789471,116850.0,116840.0,1.7745874]
[1754725982204,0.45789471,116850.0,116840.0,2.29626082]
[1754725982708,0.45789471,116850.0,116840.0,1.7745874]
[1754725982909,0.45789471,116850.0,116840.0,2.03542411]
[1754725986105,0.45789471,116850.0,116840.0,2.29626082]
[1754725986410,0.137568,116850.0,116840.0,2.29626082]
[1754725986613,0.49812471,116850.0,116840.0,1.7745874]
[1754725986814,0.49812471,116850.0,116840.0,2.03542411]
[1754725988213,0.44637471,116850.0,116840.0,2.03542411]
[1754725989403,0.44637471,116850.0,116840.0,2.29626082]
[1754725991315,0.185538,116850.0,116840.0,2.29626082]
[1754725991508,0.44637471,116850.0,116840.0,2.29626082]
[1754725991703,0.44637471,116850.0,116840.0,2.03542411]
[1754725992912,0.49812471,116850.0,116840.0,2.03542411]
[1754725993110,0.237288,116850.0,116840.0,2.03542411]
[1754725993316,0.49812471,116850.0,116840.0,2.03542411]
[1754725995322,0.49812471,116850.0,116840.0,2.18951953]
[1754725995920,0.49812471,116850.0,116840.0,2.03542411]
[1754725997622,0.49812471,116850.0,116840.0,1.7745874]
[1754725997821,0.49812471,116850.0,116840.0,2.03542411]
[1754725999624,0.49812471,116850.0,116840.0,1.7745874]
[1754725999824,0.49812471,116850.0,116840.0,2.03542411]
[1754726001225,0.49812471,116850.0,116840.0,2.14314644]
[1754726006828,0.237288,116850.0,116840.0,2.14314644]
[1754726007029,0.49812471,116850.0,116840.0,2.14314644]
[1754726009829,0.237288,116850.0,116840.0,2.14314644]
[1754726010031,0.49812471,116850.0,116840.0,2.14314644]
[1754726010530,0.237288,116850.0,116840.0,2.14314644]
[1754726010733,0.49812471,116850.0,116840.0,2.14314644]
[1754726012130,0.237288,116850.0,116840.0,2.14314644]
[1754726012330,0.44637471,116850.0,116840.0,2.14314644]
[1754726012538,0.49812471,116850.0,116840.0,1.88230973]
[1754726012828,0.49812471,116850.0,116840.0,2.14314644]
[1754726013732,0.49812471,116850.0,116840.0,2.03542411]
[1754726016635,0.237288,116850.0,116840.0,2.03542411]
[1754726016936,0.49812471,116850.0,116840.0,2.03542411]
[1754726019141,0.49812471,116850.0,116840.0,2.18951953]
[1754726020943,0.237288,116850.0,116840.0,2.18951953]
[1754726021245,0.49812471,116850.0,116840.0,2.18951953]
[1754726021639,0.49812471,116850.0,116840.0,2.03542411]
[1754726022037,0.237288,116850.0,116840.0,2.03542411]
[1754726022244,0.49812471,116850.0,116840.0,2.03542411]
[1754726023138,0.49812471,116850.0,116840.0,2.18951953]
[1754726024146,0.49812471,116850.0,116840.0,2.03542411]
[1754726024345,0.237288,116850.0,116840.0,2.03542411]
[1754726024644,0.49812471,116850.0,116840.0,2.03542411]
[1754726024843,0.49812471,116850.0,116840.0,1.7745874]
[1754726025039,0.49812471,116850.0,116840.0,2.03542411]
[1754726027546,0.49812471,116850.0,116840.0,1.7745874]
[1754726027844,0.49812471,116850.0,116840.0,2.03542411]
[1754726029546,0.237288,116850.0,116840.0,2.03542411]
[1754726029747,0.49812471,116850.0,116840.0,2.03542411]
[1754726030247,0.237288,116850.0,116840.0,2.03542411]
[1754726030545,0.49812471,116850.0,116840.0,2.03542411]
[1754726032148,0.49812471,116850.0,116840.0,2.18951953]
[1754726032949,0.49812471,116850.0,116840.0,2.03542411]
[1754726033550,0.49812471,116850.0,116840.0,2.03534411]
[1754726041656,0.53193911,116850.0,116840.0,0.9945074]
[1754726041856,0.58366911,116850.0,116840.0,1.7691574]
[1754726042154,0.58366911,116850.0,116840.0,1.7713374]
[1754726042455,0.84450582,116850.0,116840.0,1.4105374]
[1754726043050,0.58366911,116850.0,116840.0,1.4105374]
[1754726047151,0.3228324,116850.0,116840.0,1.4105374]
[1754726047347,0.58366911,116850.0,116840.0,1.4105374]
[1754726050859,0.58366911,116850.0,116840.0,1.0497374]
[1754726051968,0.58366911,116850.0,116840.0,1.15743802]
[1754726053869,0.49810471,116850.0,116840.0,1.15743802]
[1754726054171,0.237268,116850.0,116840.0,1.15743802]
[1754726054370,0.49810471,116850.0,116840.0,1.15743802]
[1754726055074,0.58366901,116850.0,116840.0,1.15743802]
[1754726055974,0.49810471,116850.0,116840.0,1.15743802]
[1754726056576,0.58366911,116850.0,116840.0,1.15743802]
[1754726057883,0.84450582,116850.0,116840.0,0.37747802]
[1754726058178,0.84450582,116850.0,116840.0,1.16119802]
[1754726059973,0.84450582,116850.0,116840.0,1.0534974]
[1754726060281,0.84450582,116850.0,116840.0,1.16119025]
[1754726064887,0.75894142,116850.0,116840.0,1.16119025]
[1754726068288,0.237268,116850.0,116840.0,1.16119025]
[1754726068583,0.75894142,116850.0,116840.0,1.16119025]
[1754726068979,0.49810471,116850.0,116840.0,1.16119025]
[1754726069980,0.49810471,116850.0,116840.0,1.0534974]
[1754726087390,0.237268,116850.0,116840.0,1.0534974]
[1754726087692,0.49810471,116850.0,116840.0,1.4142974]
[1754726087890,0.49810471,116850.0,116840.0,1.0534974]
[1754726088086,0.49810471,116850.0,116840.0,1.4142974]
[1754726088286,0.49810471,116850.0,116840.0,1.0534974]
[1754726091993,0.49810471,116850.0,116840.0,0.2697774]
[1754726092194,0.237268,116850.0,116840.0,1.15967236]
[1754726092396,0.49810471,116850.0,116840.0,1.15967236]
[1754726092591,0.237268,116850.0,116840.0,1.15967236]
[1754726092893,0.49810471,116850.0,116840.0,1.15967236]
[1754726095597,0.75894142,116850.0,116840.0,1.15967236]
[1754726098696,1.20530582,116850.0,116840.0,0.869767]
[1754726099795,1.20530582,116850.0,116840.0,0.870497]
[1754726101403,1.30530582,116850.0,116840.0,0.870497]
[1754726104803,1.30530582,116850.0,116840.0,0.97823196]
[1754726108009,1.30530582,116850.0,116840.0,0.97901196]
[1754726113816,1.30530582,116850.0,116840.0,0.97750196]
[1754726115304,1.30530582,116850.0,116840.0,0.97799196]
[1754726118014,1.30530582,116850.0,116840.0,0.870257]
[1754726119112,1.30530582,116850.0,116840.0,0.871037]
[1754726125822,0.7836324,116850.0,116840.0,0.871037]
[1754726126018,1.30530582,116850.0,116840.0,0.871037]
[1754726126819,1.30530582,116850.0,116840.0,0.97877196]
[1754726133726,0.7836324,116850.0,116840.0,0.97877196]
[1754726134023,1.30530582,116850.0,116840.0,0.97877196]
[1754726136723,1.30530582,116850.0,116840.0,0.871037]
[1754726142827,1.21974142,116850.0,116840.0,0.871037]
[1754726143028,1.11974142,116850.0,116840.0,0.871037]
[1754726144327,0.75894142,116850.0,116840.0,0.871037]
[1754726144529,0.65924142,116850.0,116840.0,0.871037]
[1754726144926,0.75665142,116850.0,116840.0,0.871037]
[1754726147223,0.75665142,116850.0,116840.0,0.97877196]
[1754726152626,0.75665142,116850.0,116840.0,0.871037]
[1754726157942,0.75665142,116850.0,116840.0,0.97877196]
[1754726164859,0.75665142,116850.0,116840.0,0.871037]
[1754726175355,0.39840471,116850.0,116840.0,1.231837]
[1754726176061,0.49522471,116850.0,116840.0,1.231837]
[1754726177657,0.234388,116850.0,116840.0,1.231837]
[1754726177852,0.49522471,116850.0,116840.0,1.231837]
[1754726178665,0.75606142,116850.0,116840.0,1.231837]
[1754726178965,0.234388,116850.0,116840.0,1.231837]
[1754726179162,0.49522471,116850.0,116840.0,1.231837]
[1754726180467,0.234388,116850.0,116840.0,1.231837]
[1754726180668,0.49522471,116850.0,116840.0,1.231837]
[1754726185671,0.75606142,116850.0,116840.0,1.231837]
[1754726190670,0.49522471,116850.0,116840.0,1.231837]
[1754726190867,0.49522471,116850.0,116840.0,1.33957196]
[1754726191275,0.184288,116850.0,116840.0,1.33957196]
[1754726191476,0.42401471,116850.0,116840.0,1.33957196]
[1754726191868,0.49522471,116850.0,116840.0,1.33957196]
[1754726192474,0.49522471,116850.0,116840.0,1.231837]
[1754726193471,0.49522471,116850.0,116840.0,1.33954607]
[1754726195375,0.234388,116850.0,116840.0,1.33954607]
[1754726195578,0.49522471,116850.0,116840.0,1.33954607]
[1754726196680,0.75606142,116850.0,116840.0,1.33954607]
[1754726202675,0.75606142,116850.0,116840.0,1.231837]
[1754726203475,0.75606142,116850.0,116840.0,1.33957394]
[1754726208781,0.75606142,116850.0,116840.0,1.231837]
[1754726213388,0.234388,116850.0,116840.0,1.231837]
[1754726213691,0.75606142,116850.0,116840.0,1.231837]
[1754726217789,0.234388,116850.0,116840.0,1.231837]
[1754726217991,0.75606142,116850.0,116840.0,1.231837]
[1754726219095,0.75606142,116850.0,116840.0,1.33957394]
[1754726219896,0.234388,116850.0,116840.0,1.33957394]
[1754726220199,0.75606142,116850.0,116840.0,1.33957394]
[1754726220800,0.75606142,116850.0,116840.0,1.231837]
[1754726222908,0.75606142,116850.0,116840.0,1.33959659]
[1754726223510,0.75606142,116850.0,116840.0,0.97879659]
[1754726225714,0.75606142,116850.0,116840.0,0.97830659]
[1754726225912,0.75606142,116850.0,116840.0,0.97752659]
[1754726229709,0.84162592,116850.0,116840.0,0.97752659]
[1754726236214,0.3199525,116850.0,116840.0,0.869767]
[1754726236415,0.84162592,116850.0,116840.0,0.869767]
[1754726237820,0.84162592,116850.0,116840.0,0.97752659]
[1754726241110,0.84162592,116850.0,116840.0,0.869767]
[1754726245422,0.3199525,116850.0,116840.0,0.869767]
[1754726245628,0.84162592,116850.0,116840.0,0.869767]
[1754726248416,0.84162592,116850.0,116840.0,0.97752659]
[1754726250129,1.20242592,116850.0,116840.0,0.88943959]
[1754726251926,1.20242592,116850.0,116840.0,0.97501139]
[1754726254323,1.20242592,116850.0,116840.0,0.88943959]
[1754726254630,1.20242592,116850.0,116840.0,0.8672518]
[1754726258538,0.6807525,116850.0,116840.0,0.8672518]
[1754726258838,1.20242592,116850.0,116840.0,0.8672518]
[1754726260138,1.20242592,116850.0,116840.0,0.97501139]
[1754726260936,1.20242592,116850.0,116840.0,0.8672518]
[1754726266539,1.20242592,116850.0,116840.0,0.97501139]
[1754726274366,0.84162592,116850.0,116840.0,0.97501139]
[1754726274665,1.20242592,116850.0,116840.0,0.97501139]
[1754726284972,0.84162592,116850.0,116840.0,0.97501139]
[1754726285172,1.20242592,116850.0,116840.0,0.97501139]
[1754726289571,1.20242592,116850.0,116840.0,0.8672518]
[1754726294677,1.20242592,116850.0,116840.0,0.97501139]
[1754726298482,1.20242592,116850.0,116840.0,0.96631139]
[1754726304694,1.19372592,116850.0,116840.0,0.96631139]
[1754726307986,0.83292592,116850.0,116840.0,0.96631139]
[1754726308181,1.19372592,116850.0,116840.0,0.96631139]
[1754726309093,0.83292592,116850.0,116840.0,0.96631139]
[1754726309284,1.19372592,116850.0,116840.0,0.96631139]
[1754726309989,0.83292592,116850.0,116840.0,0.96631139]
[1754726310189,1.19372592,116850.0,116840.0,0.96631139]
[1754726311092,0.83292592,116850.0,116840.0,0.96631139]
[1754726311390,1.19372592,116850.0,116840.0,0.96631139]
[1754726312489,1.45456263,116850.0,116840.0,0.96631139]
[1754726314794,1.19372592,116850.0,116840.0,0.96631139]
[1754726315785,1.45456263,116850.0,116840.0,0.96631139]
[1754726316396,1.09376263,116850.0,116840.0,0.96631139]
[1754726316598,1.45456263,116850.0,116840.0,0.96631139]
[1754726317188,0.6720525,116850.0,116840.0,0.96631139]
[1754726317495,1.19372592,116850.0,116840.0,0.96631139]
[1754726318990,0.83292592,116850.0,116840.0,0.96631139]
[1754726319197,1.19372592,116850.0,116840.0,0.96631139]
[1754726325999,0.83292592,116850.0,116840.0,0.96631139]
[1754726326805,0.74736142,116850.0,116840.0,0.96631139]
[1754726327406,0.83292582,116850.0,116840.0,0.96631139]
[1754726328099,1.19372582,116850.0,116840.0,0.96631139]
[1754726328303,0.83292582,116850.0,116840.0,0.96631139]
[1754726328905,0.74736142,116850.0,116840.0,0.96631139]
[1754726334113,0.83292582,116850.0,116840.0,0.96631139]
[1754726336613,0.74736142,116850.0,116840.0,0.96631139]
[1754726338119,0.83292582,116850.0,116840.0,0.96631139]
[1754726338318,1.09376253,116850.0,116840.0,0.96631139]
[1754726340217,0.83292582,116850.0,116840.0,0.8585518]
[1754726344325,1.09376253,116850.0,116840.0,0.8585518]
[1754726346326,1.09376253,116850.0,116840.0,0.96631139]
[1754726351732,0.3112524,116850.0,116840.0,0.8585518]
[1754726351922,1.09376253,116850.0,116840.0,0.8585518]
[1754726355232,1.09376253,116850.0,116840.0,0.96631139]
[1754726359035,0.3112524,116850.0,116840.0,0.96631139]
[1754726359235,1.09376253,116850.0,116840.0,0.96631139]
[1754726373850,1.09376253,116850.0,116840.0,0.8585518]
[1754726374650,1.45456253,116850.0,116840.0,0.8585518]
[1754726375451,0.6720524,116850.0,116840.0,0.8585518]
[1754726375651,1.09376253,116850.0,116840.0,0.8585518]
[1754726376246,1.45456253,116850.0,116840.0,0.8585518]
[1754726376449,1.09376253,116850.0,116840.0,0.8585518]
[1754726376751,1.45456253,116850.0,116840.0,0.8585518]
[1754726376950,1.09376253,116850.0,116840.0,0.8585518]
[1754726377650,1.45456253,116850.0,116840.0,0.8585518]
[1754726378053,1.09376253,116850.0,116840.0,0.8585518]
[1754726379753,1.09376253,116850.0,116840.0,0.96631139]
[1754726381551,1.00819813,116850.0,116840.0,0.96631139]
[1754726381752,0.74736142,116850.0,116840.0,0.96631139]
[1754726392964,0.74736142,116850.0,116840.0,0.95771139]
[1754726400079,0.74736142,116850.0,116840.0,0.8499518]
[1754726400272,0.225688,116850.0,116840.0,0.8499518]
[1754726401276,0.586488,116850.0,116840.0,1.00402306]
[1754726402077,0.586488,116850.0,116840.0,0.8499518]
[1754726402576,0.536388,116850.0,116840.0,0.8499518]
[1754726402776,0.175588,116850.0,116840.0,0.8499518]
[1754726403379,0.175588,116850.0,116840.0,1.05024206]
[1754726404379,0.128868,116850.0,116840.0,1.05024206]
[1754726411792,0.128868,116850.0,116840.0,0.8499518]
[1754726430702,0.128868,116850.0,116840.0,0.0855718]
[1754726430891,0.177198,116850.0,116840.0,0.8636918]
[1754726433409,0.210498,116850.0,116840.0,0.8636918]
[1754726435010,0.30394795,116850.0,116840.0,0.8636918]
[1754726436409,0.31748795,116850.0,116840.0,0.8636918]
[1754726437116,0.67828795,116850.0,116840.0,0.8636918]
[1754726447318,0.93952382,116850.0,116840.0,0.8636918]
[1754726452520,0.67828795,116850.0,116840.0,0.8636918]
[1754726452820,0.93952382,116850.0,116840.0,0.8636918]
[1754726457318,0.67828795,116850.0,116840.0,0.8636918]
[1754726457621,0.93952382,116850.0,116840.0,0.8636918]
[1754726462026,0.67828795,116850.0,116840.0,1.12492767]
[1754726462226,0.93952382,116850.0,116840.0,0.8636918]
[1754726462822,0.67828795,116850.0,116840.0,0.8636918]
[1754726463026,0.90447382,116850.0,116840.0,1.12492767]
[1754726463323,0.94062382,116850.0,116840.0,1.12492767]
[1754726464926,0.94062382,116850.0,116840.0,0.8636918]
[1754726465127,0.94062382,116850.0,116840.0,1.12492767]
[1754726465625,0.94062382,116850.0,116840.0,0.8636918]
[1754726465826,0.94062382,116850.0,116840.0,1.12492767]
[1754726466325,0.94062382,116850.0,116840.0,0.8636918]
[1754726466520,0.94062382,116850.0,116840.0,1.12492767]
[1754726467129,0.9612981,116850.0,116840.0,1.12492767]
[1754726468923,0.9612981,116850.0,116840.0,0.8636918]
[1754726469322,0.9612981,116850.0,116840.0,1.12492767]
[1754726470218,0.70006223,116850.0,116840.0,1.12492767]
[1754726470417,0.9612981,116850.0,116840.0,1.12492767]
[1754726471528,0.94062382,116850.0,116840.0,1.12492767]
[1754726475933,0.57982382,116850.0,116840.0,1.12492767]
[1754726476130,0.94062382,116850.0,116840.0,1.12492767]
[1754726478349,0.94062382,116850.0,116840.0,0.8636918]
[1754726478541,0.94062382,116850.0,116840.0,1.12492767]
[1754726479050,0.94062382,116850.0,116840.0,0.8636918]
[1754726479450,0.94062382,116850.0,116840.0,1.12492767]
[1754726481152,0.67938795,116850.0,116840.0,1.12492767]
[1754726481353,0.94062382,116850.0,116840.0,1.12492767]
[1754726483652,0.67938795,116850.0,116840.0,1.12492767]
[1754726483854,0.94062382,116850.0,116840.0,1.12492767]
[1754726484355,0.94062382,116850.0,116840.0,1.12592767]
[1754726486255,0.67938795,116850.0,116840.0,1.12592767]
[1754726486445,0.94062382,116850.0,116840.0,1.12592767]
[1754726487354,0.57982382,116850.0,116840.0,1.12592767]
[1754726488252,0.94062382,116850.0,116840.0,1.12592767]
[1754726494760,0.57982382,116850.0,116840.0,1.12592767]
[1754726494958,0.94062382,116850.0,116840.0,1.12592767]
[1754726497363,0.67938795,116850.0,116840.0,1.12592767]
[1754726497661,0.94062382,116850.0,116840.0,1.12592767]
[1754726500766,0.94062382,116850.0,116840.0,1.12692767]
[1754726501861,0.96114635,116850.0,116840.0,1.12692767]
[1754726508371,0.94062382,116850.0,116840.0,1.12692767]
[1754726509268,0.67938795,116850.0,116840.0,0.8656918]
[1754726509467,0.94062382,116850.0,116840.0,1.12692767]
[1754726512170,0.94062382,116850.0,116840.0,0.8656918]
[1754726512370,0.94062382,116850.0,116840.0,1.12692767]
[1754726514371,0.94062382,116850.0,116840.0,0.8656918]
[1754726514568,0.94062382,116850.0,116840.0,1.12692767]
[1754726522976,0.67938795,116850.0,116840.0,1.12692767]
[1754726523276,0.94062382,116850.0,116840.0,1.12692767]
[1754726525879,0.94062382,116850.0,116840.0,0.8656918]
[1754726526179,0.94062382,116850.0,116840.0,1.12692767]
[1754726527281,0.94062382,116850.0,116840.0,0.8656918]
[1754726527472,0.96099898,116850.0,116840.0,1.12692767]
[1754726530182,0.96099898,116850.0,116840.0,0.8656918]
[1754726530384,0.88946898,116850.0,116840.0,1.12692767]
[1754726530580,0.93656898,116850.0,116840.0,1.12692767]
[1754726530782,0.95963898,116850.0,116840.0,1.12692767]
[1754726531182,0.95963898,116850.0,116840.0,1.38816354]
[1754726531385,0.59883898,116850.0,116840.0,1.38816354]
[1754726531583,0.24269311,116850.0,116840.0,1.38816354]
[1754726531883,0.50392898,116850.0,116840.0,1.38816354]
[1754726532379,0.22231795,116850.0,116840.0,1.38816354]
[1754726532584,0.106218,116850.0,116840.0,1.38816354]
[1754726532783,0.128898,116850.0,116840.0,1.38816354]
[1754726533888,0.39013387,116850.0,116840.0,1.38816354]
[1754726537481,0.39013387,116850.0,116840.0,0.8656918]
[1754726537680,0.39013387,116850.0,116840.0,1.38816354]
[1754726538192,0.39013387,116850.0,116840.0,0.8656918]
[1754726538488,0.39013387,116850.0,116840.0,1.38816354]
[1754726538887,0.44779387,116850.0,116840.0,1.38816354]
[1754726539086,0.46197387,116850.0,116840.0,1.38816354]
[1754726542087,0.48504387,116850.0,116840.0,1.38816354]
[1754726545189,0.48504387,116850.0,116840.0,0.8656918]
[1754726545488,0.48504387,116850.0,116840.0,1.38816354]
[1754726548089,0.48504387,116850.0,116840.0,1.12692767]
[1754726550385,0.58077189,116850.0,116840.0,1.12692767]
[1754726551694,0.58077189,116850.0,116840.0,0.8656918]
[1754726551895,0.58077189,116850.0,116840.0,1.12692767]
[1754726552690,0.94157189,116850.0,116840.0,1.12692767]
[1754726555196,0.94157189,116850.0,116840.0,0.8656918]
[1754726555394,0.94157189,116850.0,116840.0,1.12692767]
[1754726556990,0.58077189,116850.0,116840.0,1.12692767]
[1754726557196,0.94157189,116850.0,116840.0,1.12692767]
[1754726559402,0.96181969,116850.0,116840.0,1.12692767]
[1754726560089,0.60101969,116850.0,116840.0,1.12692767]
[1754726560295,0.96181969,116850.0,116840.0,1.12692767]
[1754726564797,0.60101969,116850.0,116840.0,1.12692767]
[1754726565003,0.96181969,116850.0,116840.0,1.12692767]
[1754726565205,0.94157189,116850.0,116840.0,1.12692767]
[1754726565996,0.68033602,116850.0,116840.0,1.12692767]
[1754726566304,0.94157189,116850.0,116840.0,1.38816354]
[1754726571008,0.68033602,116850.0,116840.0,1.38816354]
[1754726571307,0.94157189,116850.0,116840.0,1.38816354]
[1754726572711,0.68033602,116850.0,116840.0,1.38816354]
[1754726574710,0.31953602,116850.0,116840.0,1.38816354]
[1754726574911,0.94157189,116850.0,116840.0,1.38816354]
[1754726575112,0.58077189,116850.0,116840.0,1.38816354]
[1754726575312,0.94157189,116850.0,116840.0,1.38816354]
[1754726580513,0.58077189,116850.0,116840.0,1.38816354]
[1754726582315,0.58077189,116850.0,116840.0,0.8656918]
[1754726582520,0.58077189,116850.0,116840.0,1.38816354]
[1754726582918,0.31953602,116850.0,116840.0,1.38816354]
[1754726583117,0.58077189,116850.0,116840.0,1.38816354]
[1754726591611,0.94157189,116850.0,116840.0,1.38816354]
[1754726592525,0.94157189,116850.0,116840.0,0.8656918]
[1754726592821,0.94157189,116850.0,116840.0,1.38816354]
[1754726596022,0.58077189,116850.0,116840.0,1.38816354]
[1754726596222,0.94157189,116850.0,116840.0,1.38816354]
[1754726597924,0.94157189,116850.0,116840.0,0.8656918]
[1754726598115,0.94157189,116850.0,116840.0,1.12692767]
[1754726610532,0.68033602,116850.0,116840.0,1.12692767]
[1754726610724,0.94157189,116850.0,116840.0,1.12692767]
[1754726611328,0.94157189,116850.0,116840.0,1.39402767]
[1754726612028,0.58077189,116850.0,116840.0,1.39402767]
[1754726612230,0.94157189,116850.0,116840.0,1.39402767]
[1754726616440,0.94157189,116850.0,116840.0,1.1327918]
[1754726616636,0.94157189,116850.0,116840.0,1.39402767]
[1754726622539,0.94157189,116850.0,116840.0,1.1327918]
[1754726622743,0.94157189,116850.0,116840.0,1.39402767]
[1754726623141,0.94157189,116850.0,116840.0,1.12692767]
[1754726626946,0.94157189,116850.0,116840.0,1.12688767]
[1754726633544,0.94157189,116850.0,116840.0,0.8656518]
[1754726633843,0.94157189,116850.0,116840.0,1.12688767]
[1754726634743,0.94157189,116850.0,116840.0,0.8656518]
[1754726634946,0.94157189,116850.0,116840.0,1.12688767]
[1754726636139,0.94157189,116850.0,116840.0,0.8656518]
[1754726636344,0.94157189,116850.0,116840.0,1.12688767]
[1754726638343,0.94157189,116850.0,116840.0,0.8656518]
[1754726638533,0.94157189,116850.0,116840.0,0.8656118]
[1754726643144,0.94157189,116850.0,116840.0,1.12684767]
[1754726645946,0.68033602,116850.0,116840.0,1.12684767]
[1754726646146,0.94157189,116850.0,116840.0,1.12684767]
[1754726646441,0.94157189,116850.0,116840.0,0.8656118]
[1754726646646,0.94157189,116850.0,116840.0,1.12684767]
[1754726650145,0.58077189,116850.0,116840.0,1.12684767]
[1754726650347,0.94157189,116850.0,116840.0,1.12684767]
[1754726656346,0.68033602,116850.0,116840.0,1.12684767]
[1754726656549,0.94157189,116850.0,116840.0,1.12684767]
[1754726657538,0.96155125,116850.0,116840.0,1.12684767]
[1754726659351,0.60075125,116850.0,116840.0,1.12684767]
[1754726659552,0.96155125,116850.0,116840.0,1.12684767]
[1754726663155,0.94157189,116850.0,116840.0,1.12684767]
[1754726664558,0.94157189,116850.0,116840.0,0.8656118]
[1754726664756,0.94157189,116850.0,116840.0,1.12684767]
[1754726675363,0.84666189,116850.0,116840.0,1.12684767]
[1754726675862,0.93943189,116850.0,116840.0,1.12684767]
[1754726678562,0.63271602,116850.0,116840.0,1.38808354]
[1754726678871,0.58542602,116850.0,116840.0,1.38808354]
[1754726679666,0.58542602,116850.0,116840.0,0.8656118]
[1754726679866,0.58542602,116850.0,116840.0,1.38808354]
[1754726680064,0.84666189,116850.0,116840.0,1.38808354]
[1754726681185,0.89520189,116850.0,116840.0,0.8656118]
[1754726681467,0.94287189,116850.0,116840.0,1.38808354]
[1754726684273,0.68163602,116850.0,116840.0,1.38808354]
[1754726684462,0.94287189,116850.0,116840.0,1.38808354]
[1754726684770,0.68163602,116850.0,116840.0,1.38808354]
[1754726684972,0.94287189,116850.0,116840.0,1.38808354]
[1754726685672,0.94287189,116850.0,116840.0,1.12684767]
[1754726688374,0.68163602,116850.0,116840.0,1.12684767]
[1754726688579,0.94287189,116850.0,116840.0,1.12684767]
[1754726689178,0.68163602,116850.0,116840.0,1.12684767]
[1754726689475,0.94287189,116850.0,116840.0,1.12684767]
[1754726691282,0.70158197,116850.0,116840.0,1.12684767]
[1754726691474,0.96281784,116850.0,116840.0,1.12684767]
[1754726691779,0.96281784,116850.0,116840.0,1.38808354]
[1754726692175,0.94287189,116850.0,116840.0,0.8656118]
[1754726692377,0.96281815,116850.0,116840.0,1.38808354]
[1754726693274,0.94287189,116850.0,116840.0,1.38808354]
[1754726693576,0.96281623,116850.0,116840.0,1.38808354]
[1754726694286,0.96281623,116850.0,116840.0,0.8656118]
[1754726694473,0.96281623,116850.0,116840.0,1.38808354]
[1754726697281,0.70158036,116850.0,116840.0,1.38808354]
[1754726697475,0.96281623,116850.0,116840.0,1.38808354]
[1754726700185,0.96281623,116850.0,116840.0,1.65518354]
[1754726701184,0.94287189,116850.0,116840.0,1.65518354]
[1754726702688,0.68163602,116850.0,116840.0,1.65518354]
[1754726702881,0.94287189,116850.0,116840.0,1.65518354]
[1754726706594,0.94287189,116850.0,116840.0,1.1327118]
[1754726706795,0.94287189,116850.0,116840.0,1.65518354]
[1754726706984,0.68163602,116850.0,116840.0,1.65518354]
[1754726707188,0.94287189,116850.0,116840.0,1.65518354]
[1754726707998,0.68163602,116850.0,116840.0,1.65518354]
[1754726708197,0.94287189,116850.0,116840.0,1.65518354]
[1754726709393,0.68163602,116850.0,116840.0,1.65518354]
[1754726709595,0.94287189,116850.0,116840.0,1.1327118]
[1754726709796,0.68163602,116850.0,116840.0,1.65518354]
[1754726709995,0.94287189,116850.0,116840.0,1.65518354]
[1754726710897,0.68163602,116850.0,116840.0,1.65518354]
[1754726711100,0.94287189,116850.0,116840.0,1.65518354]
[1754726711899,0.94287189,116850.0,116840.0,1.38808354]
[1754726712097,0.68163602,116850.0,116840.0,1.38808354]
[1754726712399,0.94287189,116850.0,116840.0,1.38808354]
[1754726715000,0.68163602,116850.0,116840.0,1.38808354]
[1754726715200,0.94287189,116850.0,116840.0,0.8656118]